Cogmind - Beta 15 @@@ ROGUE MODE // 2025.05.24 @ 19:19:54 Player: mathSq Result: Destroyed by D-53 Grenadier with Mini Grenade Launcher Performance ------------- Evolutions (0) 0 Regions Visited (2) 400 Robots Destroyed (11) 55 Value Destroyed (284) 284 Prototype IDs (0) 0 Alien Tech Used (0) 0 Bonus (0) 0 TOTAL SCORE: 739 Bonus ------- None Cogmind --------- Core Integrity 0/250 Matter 270/300 Energy 3/100 System Corruption 0% Temperature Cool (0) Movement Core (400) Ox7 Location -10/Mines Parts ------- > --- POWER (1) -------- (None) > --- PROPULSION (2) --- (None) > --- UTILITY (2) ------ Large Storage Unit > --- WEAPON (2) ------- Grenade Launcher Mining Laser > --- INVENTORY (15) --- Light Treads Light Treads Light Treads Light Treads Wheel Wheel Compact Wheel Compact Wheel High-capacity Battery (250) High-capacity Matter Pod (200) Seismic Detector Peak State ------------ > --- POWER ------------ Improved Ion Engine > --- PROPULSION ------- Light Treads > --- UTILITY ---------- Improved Heat Sink Large Storage Unit > --- WEAPON ----------- Medium Laser Beam Rifle > --- INVENTORY -------- Light Treads Light Treads Light Treads Light Treads Wheel Wheel Compact Wheel Compact Wheel High-capacity Battery High-capacity Matter Pod Seismic Detector EM Pulse Gun Medium Laser Grenade Launcher Mining Laser [Rating: 11] Favorites ----------- Power Light Ion Engine Engine Light Ion Engine Propulsion Light Treads Treads Light Treads Wheel Wheel Utility Small Storage Unit Device Seismic Detector Storage Small Storage Unit Weapon Medium Laser Energy Gun Medium Laser Ballistic Gun Light Assault Rifle Launcher Grenade Launcher Special Weapon Mining Laser Build | -11 -10 -10 ------- Run | Yrd Mat Min Slots Evolved . | . . . Power . | . . . Propulsion . | . . . Utility . | . . . Weapon . | . . . Parts Attached 21 | 7 7 7 Power 4 | 1 2 1 Engine 4 | 1 2 1 Core . | . . . Reactor . | . . . Propulsion 4 | 2 1 1 Treads 3 | 2 1 . Leg . | . . . Wheel 1 | . . 1 Hover . | . . . Flight . | . . . Utility 5 | 2 2 1 Device 3 | 1 1 1 Storage 2 | 1 1 . Processor . | . . . Hackware . | . . . Protection . | . . . Artifact . | . . . Weapon 8 | 2 2 4 Energy Gun 5 | 1 2 2 Energy Cannon . | . . . Ballistic Gun 1 | 1 . . Ballistic Cannon . | . . . Launcher 1 | . . 1 Special Weapon 1 | . . 1 Impact Weapon . | . . . Slashing Weapon . | . . . Piercing Weapon . | . . . Special Melee Weapon . | . . . Unidentified Prototypes . | . . . Parts Lost 10 | . 2 8 Power 2 | . 1 1 Propulsion 3 | . 1 2 Utility 1 | . . 1 Weapon 4 | . . 4 Highest Loss Streak 8 | . 1 8 To Critical Strikes . | . . . Average Backups 8 | 5 8 14 Power . | . . . Propulsion 4 | 3 4 7 Utility 1 | . 1 3 Weapon 1 | . 1 3 Tool/Special . | . . . Unused Backups 14 | . 2 12 Power . | . . . Propulsion 10 | . 2 8 Utility 3 | . . 3 Weapon 1 | . . 1 Tool/Special . | . . . Average Slot Usage (%) 98 | . 99 94 Engine 13 | . 14 12 Treads 25 | . 28 12 Wheel 1 | . . 11 Device 14 | . 14 14 Storage 14 | . 14 14 Energy Gun 25 | . 26 20 Peak Build Rating 11 | 7 10 11 Average Rating 7 | 5 8 8 On Entrance 5 | . 7 10 Naked Turns . | . . . Heaviest Build 34 | 11 30 34 Greatest Support 40 | 40 40 10 Greatest Overweight (x) 3 | 1 . 3 Average Overweight (x) . | . . 2 Largest Inventory Capacity 15 | 8 15 15 Average Capacity 10 | 7 10 15 Most Carried 15 | 8 15 15 Average Carried 8 | 5 8 14 Final Capacity 15 | 8 15 15 Final Carried 15 | 8 15 11 Class Distribution -------------------- 90% | Mutant 9% | Scavenger-Mutant Dominant Class ---------------- Mutant | -10/Materials Scavenger-Mutant | -10/Mines Resources | -11 -10 -10 ----------- Run | Yrd Mat Min Matter Collected 593 | 278 207 108 Remotely . | . . . Salvage Created 477 | 79 341 57 Parts 21 | 4 14 3 Haulers Intercepted 1 | . 1 . Recyclers Shooed 1 | 1 . . Parts Field Recycled . | . . . Retrieved Matter . | . . . Parts Self-Destructed . | . . . Prevented . | . . . Kills | -11 -10 -10 ------- Run | Yrd Mat Min Combat Hostiles Destroyed 7 | . 6 1 Guns 5 | . 4 1 Classes Destroyed 5 | 2 2 1 Tunneler 2 | 1 1 . Hauler 1 | . 1 . Recycler 1 | 1 . . Grunt 6 | . 6 . Sentry 1 | . . 1 Best Kill Streak 2 | 2 2 1 Combat Bots Only 2 | . 2 1 Max Kills in Single Turn 1 | 1 1 1 Gunslinging . | . . . Exploded . | . . . Melee . | . . . Uniques/NPCs Destroyed . | . . . Combat | -11 -10 -10 -------- Run | Yrd Mat Min Hostile Shots Fired 71 | . 55 16 Missed 7 | . 6 1 Hits 64 | . 49 15 Projectile 64 | . 49 15 AOE 16 | . . 16 Damage Taken 1195 | . 553 642 Core 261 | . 73 188 Absorbed by Shields . | . . . Core Remaining (%) 100 | 100 . . Volleys Fired 58 | 8 41 9 Largest 2 | 2 2 2 Hottest 106 | 60 100 106 Shots Fired 112 | 16 82 14 Gun 110 | 16 82 12 Cannon . | . . . Launcher . | . . . Special 2 | . . 2 Kinetic 8 | 8 . . Thermal 103 | 8 82 13 Explosive . | . . . Electromagnetic 1 | . . 1 Robot Hit Streak 11 | 10 11 8 Robot Miss Streak 3 | 1 3 1 Penetration Max . | . . . Secondary Targets 1 | . 1 . Max Gunslinging Chain 1 | . 1 . Shots Hit Robots 79 | 13 55 11 Core Hits 21 | 4 14 3 Critical Kills . | . . . Critical Parts Destroyed . | . . . Critical Strikes 5 | . 4 1 Burn 5 | . 4 1 Melee Attacks . | . . . Impact . | . . . Slashing . | . . . Piercing . | . . . Sneak Attacks . | . . . Combat Hostiles . | . . . Follow-up Attacks . | . . . Damage Inflicted 948 | 118 688 142 Guns 948 | 118 688 142 Cannons . | . . . Explosions . | . . . Melee . | . . . Ramming . | . . . Kinetic 42 | 42 . . Thermal 895 | 76 688 131 Explosive . | . . . Electromagnetic 11 | . . 11 Impact . | . . . Slashing . | . . . Piercing . | . . . Highest Corruption . | . . . Average Corruption . | . . . Corruption Purged . | . . . Corruption Blocked . | . . . Overload Shots . | . . . Overflow Damage . | . . . Projectiles . | . . . Explosions . | . . . Melee . | . . . Knockbacks . | . . . Impact . | . . . Kinetic . | . . . Secondary . | . . . Self-Inflicted Damage . | . . . Shots . | . . . Rammed . | . . . Targets Rammed . | . . . Kicked . | . . . Crushed . | . . . Highest Temperature 320 | 40 320 78 Average Temperature 72 | 18 86 28 Received Heat Transfer 309 | . 309 . Siege Activations . | . . . Martial Activations . | . . . Shielding Activations . | . . . Robots Disrupted . | . . . Combat Hostiles . | . . . Robots Corrupted . | . . . Combat Hostiles . | . . . Parts Fried . | . . . Impact Corruptions . | . . . Robots Melted 2 | . 2 . Combat Hostiles 2 | . 2 . Parts Melted 5 | . 5 . Heat Transferred 2950 | 175 2331 444 Parts Sabotaged . | . . . Parts Stolen . | . . . Parts Stripped . | . . . Power Chain Reactions . | . . . Alert | -11 -10 -10 ------- Run | Yrd Mat Min Maximum Alert Level . | . . . Low Security (%) 100 | 100 100 100 Level 1 . | . . . Level 2 . | . . . Level 3 . | . . . Level 4 . | . . . Level 5 . | . . . High Security . | . . . Max Security . | . . . Peak Influence 44 | 5 44 20 Initial 3 | . . 3 Average 9 | . 14 5 Influence Increases 239 | 10 207 22 Destroy 0b10 Robot/C 140 | . 120 20 Destroy 0b10 Robot/NC 20 | 10 10 . Destroy Leader 32 | . 32 . Select Force Hacks 30 | . 30 . Destroy Structure 2 | . . 2 Lose Combat Pursuer 15 | . 15 . Influence Decreases 239 | 10 198 31 Entered New Map 6 | . . 6 Time Decay 213 | 10 178 25 Lost Part 20 | . 20 . Squads Dispatched 2 | . 2 . Investigation 1 | . 1 . Extermination . | . . . Reinforcement 1 | . 1 . Assault . | . . . Garrison . | . . . Intercept . | . . . Searches Triggered . | . . . Construction Impeded . | . . . Haulers Reinforced . | . . . Active Scanning Responses . | . . . Cargo Convoy Interrupts . | . . . Stealth | -11 -10 -10 --------- Run | Yrd Mat Min Distress Signals . | . . . Communications Jammed . | . . . Distress Signals . | . . . Times Spotted 15 | . 9 6 Peak Tracking Total 10 | . 3 10 Tactical Retreats 1 | . 1 . Traps | -11 -10 -10 ------- Run | Yrd Mat Min Traps Triggered . | . . . Indirectly . | . . . Trap Hack Attempts . | . . . Triggered . | . . . Disarmed . | . . . Reprogrammed . | . . . Reused . | . . . Traps Extracted . | . . . Installed . | . . . Triggered . | . . . Machines | -11 -10 -10 ---------- Run | Yrd Mat Min Machines Disabled 1 | . 1 . Max in Single Turn 1 | . 1 . Machines Repaired . | . . . Machines Dismantled . | . . . Machines Sabotaged . | . . . Overloaded Fab Kills . | . . . Hacking | -11 -10 -10 --------- Run | Yrd Mat Min Machines Accessed 3 | . 3 . Terminals 2 | . 2 . Fabricators . | . . . Repair Stations . | . . . Recycling Units 1 | . 1 . Scanalyzers . | . . . Garrison Access . | . . . Total Hacks 10 | . 10 . Successful 4 | . 4 . Failed 6 | . 6 . Catastrophic 1 | . 1 . Database Lockouts . | . . . Manual 5 | . 5 . Terminals 7 | . 7 . Fabricators . | . . . Repair Stations . | . . . Recycling Units 3 | . 3 . Scanalyzers . | . . . Garrison Access . | . . . Terminal Hacks 2 | . 2 . Robot Analysis 1 | . 1 . Zone Layout 1 | . 1 . Fabricator Hacks . | . . . Repair Station Hacks . | . . . Recycling Unit Hacks 1 | . 1 . Retrieve Components 1 | . 1 . Scanalyzer . | . . . Garrison Access Hacks . | . . . Unauthorized Hacks 1 | . 1 . Terminals . | . . . Fabricators . | . . . Repair Stations . | . . . Recycling Units 1 | . 1 . Tunnel 1 | . 1 . Scanalyzers . | . . . Garrison Access . | . . . Data Cores Recovered . | . . . Used . | . . . Hacking Detections 3 | . 3 . Full Trace Events 1 | . 1 . Feedback Events . | . . . Feedback Blocked . | . . . Robot Schematics Acquired . | . . . Robots Built . | . . . Authchips . | . . . Time . | . . . Total Robot Build Rating . | . . . Part Schematics Acquired . | . . . Parts Built . | . . . Authchips . | . . . Time . | . . . Total Part Build Rating . | . . . Parts Repaired . | . . . Time . | . . . Parts Recycled . | . . . Recycled Matter . | . . . Retrieved Matter . | . . . Retrieved Components . | . . . Parts Scanalyzed . | . . . Part Schematics Acquired . | . . . Parts Damaged . | . . . Bothacking | -11 -10 -10 ------------ Run | Yrd Mat Min Used RIF Installer . | . . . Robots Hacked . | . . . Non-combat . | . . . Combat . | . . . Robot Hacks Applied . | . . . Relay Couplers Released . | . . . Fabnet Peak Effective % . | . . . Robots Rewired . | . . . Allies Hacked . | . . . Hacks Repelled . | . . . Allies | -11 -10 -10 -------- Run | Yrd Mat Min Total Allies . | . . . Largest Group . | . . . Highest-Rated Group . | . . . Highest-Rated Ally . | . . . Total Orders . | . . . Ally Attacks . | . . . Total Damage . | . . . Kills . | . . . Allies Corrupted . | . . . Allies Melted . | . . . Intel | -11 -10 -10 ------- Run | Yrd Mat Min Active Infowar (turns) 391 | 40 279 72 Seismic 391 | 40 279 72 Robot Analysis Total 1 | . 1 . Derelict Logs Recovered . | . . . Drone Launches . | . . . Drone Recoveries . | . . . Exploration | -11 -10 -10 ------------- Run | Yrd Mat Min Turns Passed 848 | 226 521 101 Spaces Moved 353 | 98 216 39 Core 10 | 10 . . Treads 304 | 88 216 . Legs . | . . . Wheels 39 | . . 39 Hover . | . . . Flight . | . . . Fastest Speed 50 | 50 160 110 Average Speed 152 | 151 160 118 Slowest Speed 160 | 160 160 125 Overloaded Moves . | . . . Propulsion Burnouts . | . . . Robots Hopped . | . . . Potential Cave-ins . | . . . Cave-ins Triggered . | . . . Exploration Rate (%) 14 | 5 31 8 Regions Visited 2 Branch Regions 1 Pre-discovered Areas 1 | . 1 . Known Exits Taken . | . . . Unknown Exits Taken 2 | 1 1 . Scrap Searched . | . . . Spaces Dug 1 | . . 1 Terrain Destroyed 2 | . . 2 Melee . | . . . Projectile 2 | . . 2 AOE . | . . . Terrain Rammed . | . . . Walls Destroyed . | . . . Machines Disabled . | . . . Actions | -11 -10 -10 --------- Run | Yrd Mat Min Total 546 | 158 313 75 Wait 69 | 38 25 6 Move 351 | 97 215 39 Hop . | . . . Pick Up 27 | 8 15 4 Fast Attach 9 | 7 2 . Attach 6 | . 2 4 Detach . | . . . Swap 11 | . 3 8 Drop 15 | . 10 5 Fire 58 | 8 41 9 Melee . | . . . Ram . | . . . Kick . | . . . Crush . | . . . Escape Stasis . | . . . Rewire . | . . . Trap . | . . . Miscellaneous . | . . . Route ------- -11/Scrapyard -10/Materials (discovered 2 exits: [*Min] / [*Sub]) -10/Mines History --------- Turn | Location | Event 23 | -11/Scrapyard | Discovered new exit (range 15) 227 | -11/Scrapyard | Entered Materials 303 | -10/Materials | Build established: Mutant 380 | -10/Materials | Discovered new exit (range 15) 560 | -10/Materials | Discovered new exit (range 9) 748 | -10/Materials | Entered Mines 768 | -10/Mines | Assembled infested the area 768 | -10/Mines | Joined a pair of Derelicts in attacking an 0b10 outpost 838 | -10/Mines | Core integrity fell below 50% 846 | -10/Mines | Core integrity fell below 20% 849 | -10/Mines | Destroyed by D-53 Grenadier with Mini Grenade Launcher Last Messages --------------- 00803_ as-25442 destroyed. 00805_ R-06 Scavenger collects Lgt. Armor Plating. 00808_ R-06 Scavenger collects Aluminum Leg. 00811_ R-06 Scavenger collects Heat Sink. 00822_ The unstable cave ceiling collapses. 00829_ Wheel destroyed. 00829_ Machine disabled. 00835_ Med. Laser destroyed. 00835_ Imp. Ion Engine destroyed. 00836_ The unstable cave ceiling collapses. 00837_ D-53 Grenadier suffers critical hit (Burn). 00837_ Lgt. Treads destroyed. 00838_ The unstable cave ceiling collapses. 00838_ D-53 Grenadier destroyed. 00841_ Med. Laser destroyed. 00843_ Beam Rifle destroyed. 00843_ Imp. Heat Sink destroyed. 00846_ The unstable cave ceiling collapses. 00847_ EM Pulse Gun destroyed. 00848_ The unstable cave ceiling collapses. Map ----- +----------------------------------------------------+ | ????????????????????????????????????????????????? | | ????????????????????????????????????????????????? | | ????????????????????????????????????????????????? | | ????????????????????????????????????????????????? | | ????????????????????????????????????????????????? | | ????????????????????????????????????????????????? | | ????????????????????????????????????????????????? | | ????????????????????????????????????????????????? | | ????????????????????????????????????????????????? | | ????????????????????????????????????????????????? | | ????????????????????????????????????????????????? | | ????????????????????????????????????????????????? | | ????????????????????????????????????????????????? | | ????????????????????????????????????????????????? | | ????????????????????????????????????????????????? | | ????????????????????????????????????????????????? | | ????????????????????????????????????????????????? | | ????????????????????????????????????????????????? | | ????????????????????????????????????????????????? | | ????????????????????????????????????????????????? | | ?????????????????????#######?????#####??????????? | | ????????????????????## ###?### ###????????? | | ???????????????????## ### #????????? | | ??????????????????## ## #????????? | | ??????????????????#! # #?????????? | | ??????????????????#! @ # ###?????????? | | ??????????????????## # ##???????????? | | ????????????????## ## ####????????????? | | ???????????????## ##???????????????? | | ????????????? %! d ##???????????????? | | ????????? %=!% * % #???????????????? | | ???????? % ####### #### #???????????????? | | ????????? #???????#####??## #???????????????? | | ???????????? ?????????????????#r#???????????????? | | ??????????????????????????????# #???????????????? | | ??????????????????????????????# #???????????????? | | ??????????????????????????????# #???????????????? | | ??????????????????????????????# #???????????????? | | ??????????????????????????????# #???????????????? | | ??????????????????????????????? #???????????????? | | ??????????????????????????????? #???????????????? | | ??????????????????????????????? ????????????????? | | ???????????????????????????????#????????????????? | | ????????????????????????????????????????????????? | | ????????????????????????????????????????????????? | | ????????????????????????????????????????????????? | | ????????????????????????????????????????????????? | | ????????????????????????????????????????????????? | | ????????????????????????????????????????????????? | | ????????????????????????????????????????????????? | +----------------------------------------------------+ Best States ------------- Heat Dissipation 39 Energy Generation 12 Energy Capacity 265 Matter Stores 300 Matter Capacity 300 Sight Range 16 Terrain Scan Density 10 Evasion (%) 40 Recoil Reduction 2 Item Schematics ----------------- None Robot Schematics ------------------ None Fabricated ------------ Nothing Repaired ---------- Nothing Alien Tech Used ----------------- None Achievements -------------- None Challenges ------------ None Game ------ Seed BoltTerrabombNullifier Manual? 0 Play Time 00:11:14 Cumulative 69.2 hours Start 2025.05.24 @ 19:11:25 End 2025.05.24 @ 19:19:54 Sessions 1 Manual Loads 0 Difficulty Rogue Special Mode None Game No. 35 Rogue 35 Adventurer 0 Explorer 0 Win Type - Total 1 Types 1/0/0/0/0/0/0/0/0/0 Lore% 53 Gallery% 53 Achievement% 46 Wizard Run 0 Options --------- Layout 0 ASCII 0 Keyboard 0 Movement Vi Keybinds 0 Fullscreen 1 Font 24/Tamsyn Map View 76x50 Zoom Use 0% Tactical HUD 1 Map Filters NONE Filters NONE Steam 1 RUN: ad8fab13-744e-4b1d-9c42-389a91351006